bitfinex/quotes_BTCUSD_20251226
["timestamp","ask_amount","ask_price","bid_price","bid_amount"]
[1766715696648,0.01123848,88980.0,88962.0,0.01124075]
[1766715696846,0.06742887,88983.0,88960.0,0.00035518]
[1766715696847,0.0112381,88983.0,88965.0,0.01124037]
[1766715697203,0.01123721,88990.0,88971.0,0.01123961]
[1766715697429,0.01123683,88993.0,88968.0,0.06743997]
[1766715697642,0.00683975,88984.0,88960.0,0.00035518]
[1766715697754,0.01208,88996.0,88960.0,0.00035518]
[1766715697755,0.00055,88968.0,88960.0,0.00035518]
[1766715697965,0.01123911,88975.0,88932.0,0.05620454]
[1766715697966,0.056207,88957.0,88932.0,0.05620454]
[1766715698167,0.00035503,88957.0,88943.0,0.01124315]
[1766715698368,0.01124024,88966.0,88926.0,0.01208]
[1766715698369,0.01208,88975.0,88960.0,0.011241]
[1766715698584,0.01208,88975.0,88960.0,0.00010646]
[1766715698847,0.01123961,88971.0,88960.0,0.00010646]
[1766715698964,0.01123936,88973.0,88960.0,0.00010646]
[1766715699169,0.01123949,88972.0,88960.0,0.00010646]
[1766715699478,0.01123987,88969.0,88960.0,0.00010646]
[1766715699816,0.01123987,88969.0,88946.0,0.0674564]
[1766715699817,0.000106,88960.0,88950.0,0.01124227]
[1766715700125,0.00010643,88960.0,88950.0,0.01124227]
[1766715700335,0.00010643,88960.0,88949.0,0.01124239]
[1766715700520,0.01223898,88976.0,88955.0,0.06744956]
[1766715700760,0.01123949,88972.0,88944.0,0.22486023]
[1766715700984,0.01114187,88969.0,88948.0,0.01124252]
[1766715701198,0.01124088,88961.0,88944.0,0.00035503]
[1766715701618,0.001,88976.0,88961.0,0.000355]
[1766715701789,0.001,88976.0,88956.0,0.01124151]
[1766715701994,0.01223898,88976.0,88955.0,0.01124163]
[1766715702206,0.01223898,88976.0,88951.0,0.01124214]
[1766715702207,0.01123608,88999.0,88977.0,0.01123885]
[1766715702416,1.39886,89006.0,88946.0,0.01208]
[1766715702417,0.01123557,89003.0,88976.0,0.01123898]
[1766715702617,0.01123633,88997.0,88975.0,0.01123911]
[1766715702822,0.01123709,88991.0,88971.0,0.01123961]
[1766715703077,0.01123709,88991.0,88968.0,0.01123999]
[1766715703078,0.01123734,88989.0,88970.0,0.01123974]
[1766715703232,0.01123721,88990.0,88966.0,0.01124024]
[1766715703577,0.01123721,88990.0,88934.0,0.21458711]
[1766715703578,0.000194,88966.0,88955.0,0.01124163]
[1766715703748,0.000194,88966.0,88933.0,1.47981]
[1766715703749,1.39886,88989.0,88945.0,0.0112429]
[1766715703750,0.22479078,88972.0,88945.0,0.0112429]
[1766715704045,0.01124088,88961.0,88941.0,0.0112434]
[1766715704352,1.43643,88951.0,88910.0,0.09568711]
[1766715704644,1.43643,88951.0,88893.0,1.46847]
[1766715704645,0.01124239,88949.0,88930.0,0.01124479]
[1766715704848,1.44767214,88951.0,88931.0,0.01124467]
[1766715705027,0.01204,88956.0,88942.0,0.01124328]
[1766715705227,0.04496,88967.0,88951.0,0.000549]
[1766715705228,0.01204,88963.0,88951.0,0.000549]
[1766715705440,0.01124075,88962.0,88951.0,0.000549]
[1766715705640,0.01124075,88962.0,88942.0,0.00035503]
[1766715705641,0.01124189,88953.0,88942.0,0.00035503]
[1766715705943,0.01204,88963.0,88928.0,0.01124505]
[1766715705944,0.01124214,88951.0,88928.0,0.01124505]
[1766715706270,0.01124214,88951.0,88892.0,0.147875]
[1766715706271,0.01124277,88946.0,88924.0,0.01124555]
[1766715706469,0.01204,88946.0,88926.0,0.0112453]
[1766715706674,0.05621451,88945.0,88922.0,0.01124581]
[1766715706984,0.0112434,88941.0,88918.0,0.06747775]
[1766715707264,0.01124328,88942.0,88919.0,0.01124619]
[1766715707484,0.01124328,88942.0,88890.0,0.09568711]
[1766715707485,0.01124429,88934.0,88916.0,0.01124656]
[1766715707672,0.01124429,88934.0,88904.0,0.01204]
[1766715707673,0.01124429,88934.0,88914.0,0.01124682]
[1766715707972,0.01124429,88934.0,88904.0,0.01204]
[1766715707973,0.01124429,88934.0,88913.0,0.00624694]
[1766715708108,0.01124492,88929.0,88909.0,0.01124745]
[1766715708312,0.01124492,88929.0,88906.0,0.01124783]
[1766715708313,0.01124454,88932.0,88908.0,0.0562379]
[1766715708565,0.01124467,88931.0,88912.0,0.01124707]
[1766715708866,0.01124492,88929.0,88906.0,0.01124783]
[1766715709169,0.01124568,88923.0,88904.0,0.01124808]
[1766715709341,1.43643,88935.0,88907.0,0.0112477]
[1766715709342,0.01124492,88929.0,88907.0,0.0112477]
[1766715709543,0.01124492,88929.0,88905.0,0.01124796]
[1766715709544,0.01124543,88925.0,88905.0,0.01124796]
[1766715709712,0.01124543,88925.0,88898.0,0.06538384]
[1766715709913,0.01124656,88916.0,88897.0,0.01124897]
[1766715710115,0.01124682,88914.0,88890.0,0.01124985]
[1766715710329,0.01124682,88914.0,88882.0,0.22501683]
[1766715710330,0.01124808,88904.0,88882.0,0.01125087]
[1766715710564,0.01124808,88904.0,88881.0,0.01125099]
[1766715710565,0.0562417,88902.0,88881.0,0.01125099]
[1766715710764,0.01124859,88900.0,88880.0,0.06750631]
[1766715710983,0.01124859,88900.0,88873.0,0.22503793]
[1766715710984,0.05624872,88891.0,88868.0,0.01125264]
[1766715711184,0.01204,88902.0,88841.0,1.46847]
[1766715711185,0.01125137,88878.0,88841.0,1.46847]
[1766715711384,0.01125213,88872.0,88850.0,0.01125492]
[1766715711626,0.01125315,88864.0,88843.0,0.01125581]
[1766715711828,0.0112534,88862.0,88842.0,0.01125593]
[1766715712142,0.0112534,88862.0,88836.0,0.01135669]
[1766715712143,0.01125403,88857.0,88836.0,0.01135669]
[1766715712280,0.00035481,88857.0,88836.0,0.0001]
[1766715712482,0.01125201,88873.0,88855.0,0.01125429]
[1766715712778,1.43643,88894.0,88855.0,0.01136072]
[1766715712779,0.01125099,88881.0,88855.0,0.01136072]
[1766715712990,0.0112496,88892.0,88855.0,0.00010643]
[1766715713241,1.50471724,88894.0,88881.0,0.00055]
[1766715713242,1.43643,88894.0,88881.0,0.00055]
[1766715713418,0.01124973,88891.0,88869.0,0.01125251]
[1766715713633,0.05625414,88883.0,88863.0,0.01125327]
[1766715713766,0.01125061,88884.0,88863.0,0.01125327]
[1766715713964,0.01125137,88878.0,88858.0,0.05626924]
[1766715714215,0.01125137,88878.0,88855.0,0.00010643]
[1766715714216,0.01125188,88874.0,88855.0,0.00010643]
[1766715714443,0.01125365,88860.0,88805.0,0.09568711]
[1766715714582,0.01125327,88863.0,88860.0,0.00055]
[1766715714783,0.01125327,88863.0,88836.0,0.00045481]
[1766715714784,0.01125391,88858.0,88838.0,0.01125644]
[1766715714980,1.43643,88869.0,88836.0,0.00045481]
[1766715715178,0.33751186,88886.0,88836.0,0.00045481]
[1766715715179,0.01125479,88851.0,88836.0,0.00045481]
[1766715715384,0.01204,88868.0,88836.0,0.00045481]
[1766715715675,0.01204,88868.0,88790.0,0.2]
[1766715715676,0.01125403,88857.0,88835.0,0.01125682]
[1766715716086,0.00035487,88857.0,88842.0,0.01125593]
[1766715716281,0.01125327,88863.0,88857.0,1.3e-07]
[1766715716282,0.01125365,88860.0,88857.0,1.3e-07]
[1766715716534,0.01125365,88860.0,88835.0,0.01125682]
[1766715716535,0.01125429,88855.0,88835.0,0.01125682]
[1766715716703,0.01125581,88843.0,88836.0,5.0]
[1766715716911,0.00010643,88855.0,88836.0,3.498901]
[1766715716912,0.01125631,88839.0,88836.0,3.498901]
[1766715717114,0.01800616,88837.0,88836.0,0.43322442]
[1766715717269,0.01125631,88839.0,88810.0,0.01125999]
[1766715717471,0.00010643,88855.0,88824.0,0.01125821]
[1766715717691,0.00010643,88855.0,88825.0,0.01204]
[1766715717891,0.05627919,88843.0,88825.0,0.01204]
[1766715718054,0.01125682,88835.0,88825.0,0.01204]
[1766715718259,0.66102556,88850.0,88821.0,0.01125859]
[1766715718260,0.01125593,88842.0,88821.0,0.01125859]
[1766715718475,0.01125657,88837.0,88835.0,0.000549]
[1766715718707,0.01125631,88839.0,88818.0,0.0675535]
[1766715718853,0.01125631,88839.0,88815.0,0.01125935]
[1766715719069,0.01800616,88876.0,88813.0,0.01204]
[1766715719070,0.01125657,88837.0,88813.0,0.01204]
[1766715719266,0.22511358,88845.0,88813.0,0.01204]
[1766715719267,0.01125733,88831.0,88813.0,0.01204]
[1766715719490,0.01125847,88822.0,88813.0,0.01204]
[1766715719693,0.05628222,88838.0,88740.0,0.4]
[1766715719694,0.01125758,88829.0,88798.0,0.22522792]
[1766715719900,0.01125885,88819.0,88804.0,0.01204]
[1766715720130,0.06755342,88819.0,88804.0,0.01204]
[1766715720373,0.06755342,88819.0,88793.0,0.05626214]
[1766715720374,0.05630087,88809.0,88785.0,0.01126316]
[1766715720590,0.05630087,88809.0,88740.0,1.12688344]
[1766715720591,0.01126189,88795.0,88777.0,1.46847]
[1766715720763,0.00014513,88785.0,88758.0,0.01126659]
[1766715721078,0.00014513,88785.0,88711.0,0.045]
[1766715721079,0.95876616,88839.0,88785.0,0.01126316]
[1766715721365,0.02993118,88920.0,88785.0,0.01126316]
[1766715721366,0.01125935,88815.0,88793.0,1.46347]
[1766715721582,0.03604578,88838.0,88785.0,0.04510489]
[1766715721583,0.000399,88793.0,88785.0,0.00010489]
[1766715721723,0.0112605,88806.0,88786.0,0.01208]
[1766715721938,0.05623001,88896.0,88786.0,0.01208]
[1766715721939,0.01125923,88816.0,88806.0,0.00015]
[1766715722138,0.01125935,88815.0,88806.0,0.00015]
[1766715722341,0.01125935,88815.0,88788.0,0.06757614]
[1766715722342,0.01126151,88798.0,88775.0,0.01126443]
[1766715722555,0.01126341,88783.0,88775.0,0.01208]
[1766715722755,0.00010639,88783.0,88779.0,0.01126392]
[1766715722988,0.01126265,88789.0,88775.0,0.01208]
[1766715723162,0.01126329,88784.0,88772.0,1.46847]
[1766715723362,0.01126405,88778.0,88773.0,0.012034]
[1766715723571,0.01126227,88792.0,88778.0,0.000503]
[1766715723797,0.2252213,88802.0,88773.0,0.011484]
[1766715723798,0.08104578,88829.0,88775.0,0.01126443]
[1766715724010,0.08104578,88829.0,88773.0,0.02274868]
[1766715724011,0.01126265,88789.0,88773.0,0.011484]
[1766715724215,0.01126075,88804.0,88780.0,0.05631867]
[1766715724435,0.66102556,88820.0,88773.0,0.02274868]
[1766715724436,0.01126164,88797.0,88773.0,0.02274868]
[1766715724640,0.01126126,88800.0,88778.0,0.01126405]
[1766715724862,0.01126189,88795.0,88779.0,0.01208]
[1766715725157,0.66102556,88810.0,88779.0,0.01208]
[1766715725158,0.01125973,88812.0,88795.0,0.000549]
[1766715725358,0.06302066,88855.0,88803.0,0.01126088]
[1766715725359,0.01125847,88822.0,88803.0,0.01126088]
[1766715725574,0.06755367,88819.0,88804.0,0.01208]
[1766715725765,0.01125923,88816.0,88804.0,0.01208]
[1766715726098,0.01125999,88810.0,88804.0,0.01208]
[1766715726248,0.01126037,88807.0,88794.0,0.01208]
[1766715726446,0.01802066,88879.0,88812.0,0.01125973]
[1766715726758,0.01802066,88879.0,88808.0,3.3146]
[1766715726759,0.01125555,88845.0,88808.0,3.3146]
[1766715726898,0.01125555,88845.0,88807.0,0.001099]
[1766715726899,0.01125619,88840.0,88807.0,0.001099]
[1766715727100,0.05627435,88851.0,88829.0,0.01125758]
[1766715727300,0.01125543,88846.0,88824.0,0.06754902]
[1766715727522,0.01125745,88830.0,88811.0,0.01125986]
[1766715727668,0.01125733,88831.0,88810.0,0.01125999]
[1766715727878,0.05628729,88830.0,88808.0,0.01126024]
[1766715728084,0.00010681,88831.0,88806.0,0.01208]
[1766715728284,8.1e-07,88831.0,88825.0,0.01125809]
[1766715728511,8.1e-07,88831.0,88822.0,0.01125847]
[1766715728512,8.1e-07,88831.0,88826.0,0.01208]
[1766715728732,8.1e-07,88831.0,88823.0,0.01125834]
[1766715728934,8.1e-07,88831.0,88812.0,0.22519407]
[1766715728935,8.1e-07,88831.0,88812.0,0.01125973]
[1766715729297,8.1e-07,88831.0,88815.0,0.01125935]
[1766715729544,0.01125745,88830.0,88820.0,0.05]
[1766715729724,8.1e-07,88831.0,88820.0,0.05]
[1766715729725,0.01125814,88831.0,88820.0,0.05]
[1766715729922,0.01125758,88829.0,88821.0,0.01208]
[1766715730130,8.1e-07,88831.0,88820.0,0.06208]
[1766715730336,8.1e-07,88831.0,88825.0,0.01125809]
[1766715730535,8.1e-07,88831.0,88822.0,0.01125847]
[1766715730536,8.1e-07,88831.0,88824.0,0.01125821]
[1766715730737,8.1e-07,88831.0,88823.0,0.01125834]
[1766715731072,8.1e-07,88831.0,88824.0,0.01125821]
[1766715731562,8.1e-07,88831.0,88822.0,0.01125847]
[1766715731764,8.1e-07,88831.0,88821.0,0.01125859]
[1766715731997,8.1e-07,88831.0,88734.0,0.14292652]
[1766715731998,0.000106,88821.0,88807.0,0.01208]
[1766715732111,0.66102556,88840.0,88807.0,0.01208]
[1766715732112,0.01125543,88846.0,88818.0,0.06755368]
[1766715732472,0.01125543,88846.0,88819.0,0.01208]
[1766715732473,0.01125669,88836.0,88819.0,0.01208]
[1766715732683,0.01125682,88835.0,88819.0,0.01208]
[1766715732878,0.01125644,88838.0,88820.0,0.01125872]
[1766715733097,0.01125593,88842.0,88819.0,0.01208]
[1766715733303,0.05628032,88841.0,88820.0,0.01125872]
[1766715733494,0.05628059,88841.0,88819.0,0.02333885]
[1766715733642,0.01125568,88844.0,88826.0,0.01125796]
[1766715733851,0.01125568,88844.0,88818.0,0.22517909]
[1766715733852,0.01125733,88831.0,88817.0,0.01208]
[1766715734238,0.01125568,88844.0,88824.0,0.01125821]
[1766715734435,0.01125555,88845.0,88824.0,0.01125821]
[1766715734599,0.01125555,88845.0,88818.0,0.01208]
[1766715734600,0.00035582,88846.0,88818.0,0.01208]
[1766715734807,0.00035582,88846.0,88818.0,0.00057675]
[1766715735026,0.22511368,88844.0,88814.0,0.01125948]
[1766715735231,0.00035582,88846.0,88814.0,0.01125948]
[1766715735232,0.06753574,88842.0,88819.0,0.01208]
[1766715735366,0.01125581,88843.0,88822.0,0.05629214]
[1766715735573,0.00035582,88846.0,88819.0,0.01125872]
[1766715735574,0.01125682,88835.0,88819.0,0.01125872]
[1766715735824,0.02994288,88944.0,88658.0,0.76256958]
[1766715735998,0.02994288,88944.0,88607.0,0.49154008]
[1766715735999,0.06752983,88850.0,88828.0,0.05628821]
[1766715736209,0.59693568,88880.0,88826.0,0.06779402]
[1766715736210,0.06752362,88858.0,88834.0,0.06754132]
[1766715736408,0.01125429,88855.0,88837.0,0.01125657]
[1766715736662,0.01125479,88851.0,88833.0,0.01125707]
[1766715736864,0.00112575,88854.0,88841.0,0.01125606]
[1766715737087,0.05660396,88933.0,88860.0,0.01125365]
[1766715737088,0.01125137,88878.0,88860.0,0.01125365]
[1766715737275,0.01125137,88878.0,88826.0,0.00024666]
[1766715737276,0.00010672,88878.0,88865.0,0.01125302]
[1766715737431,0.00010672,88878.0,88871.0,0.01125226]
[1766715737627,0.0112477,88907.0,88882.0,0.01125087]
[1766715737852,0.0112477,88907.0,88891.0,0.01124973]
[1766715737853,0.00010666,88907.0,88891.0,0.01124973]
[1766715738064,0.00010666,88907.0,88883.0,0.01208]
[1766715738065,0.00010666,88907.0,88894.0,0.01124935]
[1766715738258,0.00010666,88907.0,88895.0,0.04504]
[1766715738991,0.00010666,88907.0,88897.0,0.01124897]
[1766715739284,0.00010666,88907.0,88895.0,0.10128562]
[1766715739285,0.00010666,88907.0,88899.0,0.01124872]
[1766715739444,0.00010666,88907.0,88896.0,0.0112491]
[1766715739896,0.00010666,88907.0,88898.0,0.01124884]
[1766715740183,0.0112472,88911.0,88888.0,0.01125011]
[1766715740388,0.00102676,88910.0,88889.0,0.11332981]
[1766715740542,0.01124694,88913.0,88910.0,0.000549]
[1766715740753,0.00102676,88915.0,88911.0,0.01204]
[1766715741008,0.01124593,88921.0,88911.0,0.01204]
[1766715741009,0.00875266,88917.0,88911.0,0.01149]
[1766715741211,0.01124745,88909.0,88889.0,0.04504]
[1766715741347,0.0112472,88911.0,88891.0,0.01124973]
[1766715741545,0.01124694,88913.0,88893.0,0.01124947]
[1766715741780,0.22490475,88927.0,88890.0,0.07953868]
[1766715741781,0.01124581,88922.0,88901.0,0.01124846]
[1766715741983,0.01124581,88922.0,88902.0,0.01124834]
[1766715742161,0.01124631,88918.0,88900.0,0.01124859]
[1766715742367,0.01124619,88919.0,88898.0,0.01124884]
[1766715742565,0.01124568,88923.0,88899.0,0.01124872]
[1766715742791,0.01124593,88921.0,88903.0,0.01124821]
[1766715742987,0.01124694,88913.0,88904.0,0.05704]
[1766715743200,0.01124694,88913.0,88894.0,0.01124935]
[1766715743201,0.22490385,88927.0,88888.0,0.056356]
[1766715743202,0.06748899,88904.0,88888.0,0.00010666]
[1766715743407,0.01802066,88939.0,88888.0,0.00010666]
[1766715743408,0.05624992,88889.0,88888.0,0.00010666]
[1766715743616,0.05624992,88889.0,88880.0,0.00651438]
[1766715743617,0.05625372,88883.0,88880.0,0.00651438]
[1766715743781,0.06750446,88883.0,88880.0,0.00651438]
[1766715743967,0.59693568,88920.0,88880.0,0.00651438]
[1766715744167,0.01124821,88903.0,88884.0,0.01125061]
[1766715744430,0.01124846,88901.0,88884.0,1.40517]
[1766715744623,0.00010662,88912.0,88868.0,1.40517]
[1766715744624,0.01124998,88889.0,88868.0,1.40517]
[1766715744833,0.01124998,88889.0,88820.0,0.137875]
[1766715744834,0.01125175,88875.0,88869.0,0.05704]
[1766715745121,0.01125213,88872.0,88852.0,1.40517]
[1766715745320,0.01125251,88869.0,88853.0,0.05704]
[1766715745554,0.01125213,88872.0,88853.0,0.05704]
[1766715745765,0.02994288,88967.0,88853.0,0.05704]
[1766715745766,0.01125074,88883.0,88872.0,0.000549]
[1766715745934,0.01125074,88883.0,88860.0,1.40517]
[1766715745935,0.93919,88909.0,88873.0,0.01204]
[1766715746145,0.01125036,88886.0,88873.0,0.01214672]
[1766715746320,0.01124985,88890.0,88873.0,0.01214672]
[1766715746521,0.01124998,88889.0,88873.0,0.01214672]
[1766715746750,0.59693568,88910.0,88876.0,0.05625815]
[1766715746751,0.01124859,88900.0,88876.0,0.05625815]
[1766715746976,0.05623537,88912.0,88890.0,0.01124985]
[1766715747181,0.05623537,88912.0,88880.0,0.2250208]
[1766715747182,0.05623474,88913.0,88892.0,0.0112496]
[1766715747386,0.01124669,88915.0,88893.0,0.01124947]
[1766715747723,0.01124669,88915.0,88880.0,0.2250208]
[1766715747724,0.01124796,88905.0,88894.0,0.05704]
[1766715747895,0.01124796,88905.0,88888.0,1.40517]
[1766715748091,0.01124834,88902.0,88895.0,0.05704]
[1766715748295,0.01124859,88900.0,88895.0,0.05704]
[1766715748494,0.22494127,88913.0,88895.0,0.05704]
[1766715748495,0.06748432,88910.0,88895.0,0.05704]
[1766715748706,0.0562379,88908.0,88900.0,0.000549]
[1766715748835,0.0112477,88907.0,88901.0,0.01204]
[1766715749046,0.0112477,88907.0,88894.0,0.045]
[1766715749047,0.01124796,88905.0,88894.0,0.045]
[1766715749295,0.01802066,88923.0,88883.0,0.01204]
[1766715749296,0.01124935,88894.0,88883.0,0.01204]
[1766715749501,0.01124897,88897.0,88884.0,0.01204]
[1766715749502,0.0112491,88896.0,88884.0,0.01204]
[1766715749753,0.0112496,88892.0,88884.0,0.01204]
[1766715749907,2.3e-07,88887.0,88884.0,0.01204]
[1766715750245,2.3e-07,88887.0,88878.0,0.00825]
[1766715750246,0.01125074,88883.0,88878.0,0.00825]
[1766715750448,0.05625499,88881.0,88878.0,0.00010672]
[1766715750647,2.3e-07,88887.0,88878.0,0.00010672]
[1766715751339,0.01125036,88886.0,88878.0,0.00010672]
[1766715751683,0.01125061,88884.0,88878.0,0.00010672]
[1766715751834,0.05625595,88880.0,88878.0,0.00010672]
[1766715752022,0.01125011,88888.0,88878.0,0.00010672]
[1766715752222,0.01124973,88891.0,88878.0,0.00010672]
[1766715752414,0.01124935,88894.0,88878.0,0.00010672]
[1766715752684,0.01124884,88898.0,88878.0,0.01135809]
[1766715752828,0.01124998,88889.0,88878.0,0.00010672]
[1766715753030,0.06024176,88997.0,88878.0,0.00010672]
[1766715753031,0.01124884,88898.0,88878.0,0.00010672]
[1766715753249,0.01124973,88891.0,88878.0,0.00010672]
[1766715753456,0.01124783,88906.0,88882.0,0.01125087]
[1766715753654,0.01124859,88900.0,88879.0,0.05625592]
[1766715753855,0.05624561,88896.0,88878.0,0.00010672]
[1766715754066,0.01125011,88888.0,88878.0,0.00010672]
[1766715754297,0.01802066,88939.0,88879.0,0.01125125]
[1766715754443,0.01124897,88897.0,88878.0,0.00010672]
[1766715754638,0.01124897,88897.0,88878.0,1.47278459]
[1766715754944,0.01124897,88897.0,88879.0,1.41642125]
[1766715755165,0.01124834,88902.0,88883.0,0.01125074]
[1766715755384,0.01124834,88902.0,88882.0,0.01125087]
[1766715755602,0.05624429,88898.0,88879.0,1.40517]
[1766715755822,0.01124922,88895.0,88879.0,1.40517]
[1766715756028,0.01124947,88893.0,88879.0,1.40517]
[1766715756176,0.01124922,88895.0,88879.0,1.40517]
[1766715756493,0.01124985,88890.0,88879.0,1.40517]
[1766715756697,0.01124985,88890.0,88869.0,0.02329251]
[1766715756698,0.01125188,88874.0,88865.0,1.40517]
[1766715756948,0.01135844,88874.0,88866.0,0.012]
[1766715757153,0.00010656,88874.0,88866.0,0.012]
[1766715757360,0.22498533,88895.0,88874.0,0.000549]
[1766715757501,0.01124985,88890.0,88874.0,0.000549]
[1766715757841,0.89,88918.0,88879.0,0.01125125]
[1766715757842,0.01124834,88902.0,88879.0,0.01125125]
[1766715758078,0.01124872,88899.0,88877.0,0.0112515]
[1766715758279,0.01124872,88899.0,88877.0,1.40517]
[1766715758280,0.05624423,88898.0,88877.0,1.40517]
[1766715758566,0.01124973,88891.0,88877.0,1.40517]
[1766715759200,0.01124947,88893.0,88877.0,1.40517]
[1766715759403,0.01124998,88889.0,88877.0,1.40517]
[1766715759548,0.01125049,88885.0,88877.0,1.40517]
[1766715759761,0.01124985,88890.0,88869.0,0.01125251]
[1766715759935,0.01124973,88891.0,88871.0,0.01125226]
[1766715760140,0.01124998,88889.0,88870.0,0.01125239]
[1766715760349,0.5887385,88900.0,88876.0,0.01125163]
[1766715760530,0.01124846,88901.0,88879.0,0.01125125]
[1766715760741,0.01124884,88898.0,88877.0,1.4164215]
[1766715760953,0.0112496,88892.0,88877.0,1.40517]
[1766715761154,0.01124973,88891.0,88877.0,1.40517]
[1766715761461,0.5887385,88890.0,88871.0,0.01125226]
[1766715761662,0.00010668,88899.0,88881.0,1.41642099]
[1766715761883,0.00010668,88899.0,88884.0,0.01125061]
[1766715762176,0.01124745,88909.0,88882.0,0.012]
[1766715762177,0.01124568,88923.0,88902.0,0.01124834]
[1766715762333,1.12402129,88967.0,88907.0,1.40517]
[1766715762334,0.01124492,88929.0,88907.0,1.40517]
[1766715762485,0.01124479,88930.0,88907.0,1.40517]
[1766715762486,0.01124581,88922.0,88907.0,1.40517]
[1766715762691,0.01124555,88924.0,88907.0,1.40517]
[1766715762963,0.01124581,88922.0,88907.0,1.40517]
[1766715763122,0.0112453,88926.0,88907.0,1.40517]
[1766715763304,0.06747068,88928.0,88907.0,1.40517]
[1766715763305,0.01124517,88927.0,88907.0,1.40517]
[1766715763500,0.5887385,88930.0,88908.0,0.0562379]
[1766715763698,0.59998329,88930.0,88911.0,0.0112472]
[1766715763900,0.65620745,88930.0,88910.0,0.01124732]
[1766715764188,0.01124505,88928.0,88911.0,0.0112472]
[1766715764375,0.01124517,88927.0,88910.0,0.01124732]
[1766715764510,0.01135181,88927.0,88909.0,0.01124745]
[1766715764706,0.01124555,88924.0,88907.0,1.40517]
[1766715764915,0.01124568,88923.0,88907.0,1.40517]
[1766715765115,0.01124694,88913.0,88903.0,0.012]
[1766715765323,0.00010664,88927.0,88903.0,0.012]
[1766715765324,0.01124619,88919.0,88903.0,0.012]
[1766715765562,0.01124834,88902.0,88877.0,0.10693861]
[1766715765769,0.01124796,88905.0,88894.0,0.01196]
[1766715766000,0.06748662,88907.0,88895.0,0.01196]
[1766715766204,0.01124783,88906.0,88895.0,0.01196]
[1766715766417,0.01124745,88909.0,88895.0,0.01196]
[1766715766619,0.01124796,88905.0,88895.0,0.01196]
[1766715766785,0.01124808,88904.0,88895.0,0.01196]
[1766715767021,0.01124859,88900.0,88895.0,0.01196]
[1766715767192,0.01124846,88901.0,88895.0,0.01196]
[1766715767391,0.01124859,88900.0,88898.0,0.05]
[1766715767600,0.01124859,88900.0,88898.0,0.0314147]
[1766715767982,0.067487,88906.0,88898.0,0.0314147]
[1766715768178,0.02994288,88962.0,88896.0,0.01196]
[1766715768379,1.12400644,88968.0,88906.0,0.000549]
[1766715768380,0.06747979,88916.0,88906.0,0.000549]
[1766715768582,0.06747979,88916.0,88896.0,0.01196]
[1766715768583,0.0112477,88907.0,88896.0,0.01196]
[1766715768935,0.33731172,88939.0,88896.0,0.01196]
[1766715768937,0.00401089,88983.0,88944.0,1.45844]
[1766715769085,0.01123911,88975.0,88951.0,0.01124214]
[1766715769278,0.0242028,89004.0,88954.0,0.01124176]
[1766715769279,0.01123898,88976.0,88954.0,0.01124176]
[1766715769472,0.05629759,88983.0,88952.0,1.51464958]
[1766715769473,0.00010668,88983.0,88952.0,1.45844]
[1766715769732,0.01123721,88990.0,88950.0,0.5887385]
[1766715770064,0.5889385,89000.0,88973.0,1.45844]
[1766715770065,0.05637979,89000.0,88973.0,1.45844]
[1766715770267,0.05637979,89000.0,88951.0,0.22484289]
[1766715770268,0.05637979,89000.0,88974.0,0.05696]
[1766715770269,0.5887385,88990.0,88974.0,0.05696]
[1766715770414,0.0002,88996.0,88974.0,0.11315598]
[1766715770625,0.01143646,88996.0,88975.0,0.01123911]
[1766715770943,0.0002,88996.0,88977.0,0.0692999]
[1766715771343,0.0002,88996.0,88974.0,0.11502105]
[1766715771493,0.01123784,88985.0,88975.0,0.011411]
[1766715771691,0.01123784,88985.0,88964.0,0.0112405]
[1766715771692,0.01123822,88982.0,88970.0,0.05806105]
[1766715771890,0.05618885,88986.0,88971.0,0.01196]
[1766715771891,0.01123873,88978.0,88971.0,0.01196]
[1766715772119,0.5887385,88980.0,88972.0,0.01196]
[1766715772324,0.01123885,88977.0,88972.0,0.01196]
[1766715772657,0.5887385,88980.0,88972.0,0.01196]
[1766715772836,0.01123885,88977.0,88972.0,0.01196]
[1766715773039,0.01123848,88980.0,88972.0,0.01196]
[1766715773254,0.01123911,88975.0,88972.0,0.01196]
[1766715773473,0.01123911,88975.0,88972.0,0.00122943]
[1766715773991,0.06743508,88975.0,88972.0,0.00122943]
[1766715774192,0.01123822,88982.0,88972.0,0.00122943]
[1766715774390,0.01123835,88981.0,88975.0,0.000549]
[1766715774591,0.06742623,88987.0,88975.0,0.000549]
[1766715774793,0.06742623,88987.0,88972.0,0.00122943]
[1766715774794,0.0112381,88983.0,88972.0,0.00122943]
[1766715774965,0.01123759,88987.0,88972.0,0.00122943]
[1766715775161,0.01123797,88984.0,88972.0,0.00122943]
[1766715775361,0.01123822,88982.0,88972.0,0.00122943]
[1766715775636,0.01123797,88984.0,88972.0,0.00122943]
[1766715775637,0.0112381,88983.0,88972.0,0.00122943]
[1766715775763,0.01123835,88981.0,88972.0,0.00122943]
[1766715775962,0.01123885,88977.0,88972.0,0.00122943]
[1766715776164,0.0112386,88979.0,88972.0,0.00122943]
[1766715776587,0.05618732,88989.0,88972.0,0.00122943]
[1766715776802,0.01123822,88982.0,88972.0,0.00122943]
[1766715777007,0.01123848,88980.0,88972.0,0.00122943]
[1766715777181,0.01123885,88977.0,88972.0,0.00122943]
[1766715777380,0.05619603,88975.0,88972.0,0.00122943]
[1766715777581,0.06743514,88975.0,88972.0,0.00122943]
[1766715777789,0.01123936,88973.0,88962.0,0.01192]
[1766715777986,0.01123936,88973.0,88953.0,0.056209]
[1766715777987,0.011241,88960.0,88950.0,0.05806105]
[1766715778224,0.0001065,88973.0,88939.0,0.04496]
[1766715778225,0.0001065,88973.0,88960.0,0.000549]
[1766715778383,0.0001065,88973.0,88954.0,0.01124176]
[1766715778384,0.01123949,88972.0,88954.0,0.01124176]
[1766715778585,5e-07,88973.0,88957.0,0.01124138]
[1766715778791,5e-07,88973.0,88958.0,0.02316125]
[1766715779005,5e-07,88973.0,88958.0,0.01192]
[1766715779208,5e-07,88973.0,88965.0,0.05]
[1766715779575,0.0112381,88983.0,88966.0,1.45844]
[1766715779873,0.0112386,88979.0,88966.0,1.45844]
[1766715780078,0.01123885,88977.0,88966.0,1.45844]
[1766715780515,0.05619556,88975.0,88965.0,0.05]
[1766715780728,0.01123999,88968.0,88965.0,0.049451]
[1766715780931,0.0561914,88982.0,88968.0,0.00055]
[1766715781165,0.0002,89000.0,88969.0,1.45844]
[1766715781383,0.0002,89000.0,88984.0,0.01123797]
[1766715781609,0.87424,89031.0,89002.0,0.0112357]
[1766715781610,0.01123355,89019.0,89002.0,0.0112357]
[1766715781832,0.01123355,89019.0,89000.0,0.06741544]
[1766715781833,0.01123267,89026.0,89003.0,0.01192]
[1766715782110,0.01123204,89031.0,89026.0,0.000549]
[1766715782327,0.01123204,89031.0,88984.0,0.0632653]
[1766715782328,0.01123368,89018.0,88999.0,0.01192]